Cogmind - Beta 15 @@@ ROGUE MODE // 2025.06.22 @ 13:39:07 Player: LightKnight Result: Destroyed by OW-ZEB(R) with Subdweller Laser Performance ------------- Evolutions (0) 0 Regions Visited (2) 400 Robots Destroyed (18) 90 Value Destroyed (599) 599 Prototype IDs (2) 40 Alien Tech Used (0) 0 Bonus (0) 0 TOTAL SCORE: 1129 Bonus ------- None Cogmind --------- Core Integrity 0/250 Matter 294/300 Energy 200/200 System Corruption 0% Temperature Cool (14) Movement Core (400) Ox7 Location -10/Subcaves Parts ------- > --- POWER (1) -------- Subdweller Power Source > --- PROPULSION (2) --- Subdweller Monowheel > --- UTILITY (2) ------ Medium Storage Unit > --- WEAPON (2) ------- Particle Cannon Rocket Launcher > --- INVENTORY (10) --- Light Ion Engine Light Humpback Subdweller Optics Shotgun Rocket Launcher Subdweller Shrapnel Launcher Peak State ------------ > --- POWER ------------ Subdweller Power Source > --- PROPULSION ------- Subdweller Monowheel > --- UTILITY ---------- Medium Storage Unit Makeshift Thermal Plating > --- WEAPON ----------- Particle Cannon Rocket Launcher > --- INVENTORY -------- Light Ion Engine Light Humpback Subdweller Optics Shotgun Rocket Launcher Subdweller Shrapnel Launcher [Rating: 14] Favorites ----------- Power Ion Engine Engine Ion Engine Propulsion Light Treads Treads Light Treads Leg Aluminum Leg Wheel Subdweller Monowheel Utility Medium Storage Unit Storage Medium Storage Unit Protection Makeshift Thermal Plating Weapon Particle Cannon Energy Cannon Particle Cannon Ballistic Gun Assault Rifle Launcher Rocket Launcher Build | -11 -10 -10 ------- Run | Yrd Mat Sub Slots Evolved . | . . . Power . | . . . Propulsion . | . . . Utility . | . . . Weapon . | . . . Parts Attached 13 | . 7 6 Power 1 | . . 1 Engine 1 | . . 1 Core . | . . . Reactor . | . . . Propulsion 3 | . 2 1 Treads 2 | . 2 . Leg . | . . . Wheel 1 | . . 1 Hover . | . . . Flight . | . . . Utility 2 | . 1 1 Device . | . . . Storage 1 | . 1 . Processor . | . . . Hackware . | . . . Protection 1 | . . 1 Artifact . | . . . Weapon 7 | . 4 3 Energy Gun . | . . . Energy Cannon 2 | . 1 1 Ballistic Gun 2 | . 2 . Ballistic Cannon . | . . . Launcher 3 | . 1 2 Special Weapon . | . . . Impact Weapon . | . . . Slashing Weapon . | . . . Piercing Weapon . | . . . Special Melee Weapon . | . . . Unidentified Prototypes . | . . . Parts Lost 6 | . . 6 Power 1 | . . 1 Propulsion 2 | . . 2 Utility 1 | . . 1 Weapon 2 | . . 2 Highest Loss Streak 2 | . . 2 To Critical Strikes . | . . . Average Backups 7 | . 6 8 Power 1 | . 1 1 Propulsion 1 | . 3 . Utility . | . . 1 Weapon 4 | . 1 5 Tool/Special . | . . . Unused Backups 16 | . 6 10 Power 3 | . 1 2 Propulsion 4 | . 2 2 Utility 4 | . 2 2 Weapon 5 | . 1 4 Tool/Special . | . . . Average Slot Usage (%) 81 | . 85 80 Engine 13 | . 14 13 Treads 12 | . 2 14 Leg 5 | . 25 . Wheel 5 | . . 6 Storage 14 | . 14 14 Protection 2 | . . 3 Energy Cannon 11 | . 1 14 Ballistic Gun 5 | . 26 . Launcher 10 | . . 13 Peak Build Rating 14 | . 9 14 Average Rating 9 | . 6 10 On Entrance 7 | 6 6 9 Naked Turns . | . . . Heaviest Build 27 | 13 23 27 Greatest Support 40 | 20 40 40 Greatest Overweight (x) 8 | . 1 8 Average Overweight (x) . | . . 1 Largest Inventory Capacity 10 | . 10 10 Average Capacity 9 | . 9 10 Most Carried 10 | . 10 10 Average Carried 8 | . 6 8 Final Capacity 10 | 8 10 10 Final Carried 10 | 6 10 7 Class Distribution -------------------- 100% | Mutant Dominant Class ---------------- Mutant | -10/Materials Mutant | -10/Subcaves Resources | -11 -10 -10 ----------- Run | Yrd Mat Sub Matter Collected 678 | 200 64 414 Remotely . | . . . Salvage Created 439 | . 139 300 Parts 27 | . 12 15 Haulers Intercepted . | . . . Recyclers Shooed . | . . . Parts Field Recycled . | . . . Retrieved Matter . | . . . Parts Self-Destructed 6 | . . 6 Prevented . | . . . Kills | -11 -10 -10 ------- Run | Yrd Mat Sub Combat Hostiles Destroyed 17 | . 5 12 Guns 5 | . 5 . Cannons 1 | . . 1 AOE 10 | . . 10 Classes Destroyed 5 | . 3 2 Watcher 1 | . 1 . Swarmer 3 | . 3 . Grunt 2 | . 2 . Sentry 1 | . . 1 Subdweller 11 | . . 11 Best Kill Streak 6 | . 3 6 Combat Bots Only 6 | . 3 6 Max Kills in Single Turn 2 | . 2 2 Gunslinging . | . . . Exploded 2 | . . 2 Melee . | . . . Uniques/NPCs Destroyed . | . . . Combat | -11 -10 -10 -------- Run | Yrd Mat Sub Hostile Shots Fired 63 | . 20 43 Missed 11 | . 4 7 Hits 52 | . 16 36 Projectile 52 | . 16 36 Critical Strikes 1 | . . 1 Damage Taken 1072 | . 140 932 Core 264 | . 46 218 Absorbed by Shields . | . . . Ignored by Resistances 13 | . . 13 Core Remaining (%) 100 | 100 . . Volleys Fired 47 | . 11 36 Largest 2 | . 2 2 Hottest 101 | . 40 101 Shots Fired 63 | . 22 41 Gun 22 | . 22 . Cannon 11 | . . 11 Launcher 30 | . . 30 Special . | . . . Kinetic 22 | . 22 . Thermal 11 | . . 11 Explosive 30 | . . 30 Electromagnetic . | . . . Robot Hit Streak 14 | . 8 14 Robot Miss Streak 2 | . 2 1 Penetration Max . | . . . Secondary Targets 1 | . 1 . Max Gunslinging Chain 1 | . 1 . Shots Hit Robots 43 | . 15 28 Core Hits 27 | . 9 18 Critical Kills 1 | . . 1 Critical Parts Destroyed . | . . . Critical Strikes 1 | . . 1 Meltdown 1 | . . 1 Melee Attacks . | . . . Impact . | . . . Slashing . | . . . Piercing . | . . . Sneak Attacks . | . . . Combat Hostiles . | . . . Follow-up Attacks . | . . . Damage Inflicted 2020 | . 171 1849 Guns 165 | . 165 . Cannons 142 | . . 142 Explosions 1707 | . . 1707 Melee . | . . . Ramming 6 | . 6 . Kinetic 165 | . 165 . Thermal 142 | . . 142 Explosive 1707 | . . 1707 Electromagnetic . | . . . Impact . | . . . Slashing . | . . . Piercing . | . . . Highest Corruption . | . . . Average Corruption . | . . . Corruption Purged . | . . . Corruption Blocked . | . . . Overload Shots . | . . . Overflow Damage 5 | . . 5 Projectiles . | . . . Explosions 5 | . . 5 Melee . | . . . Knockbacks . | . . . Impact . | . . . Kinetic . | . . . Secondary . | . . . Self-Inflicted Damage 196 | . . 196 Shots 7 | . . 7 Rammed . | . . . Targets Rammed 2 | . 2 . Kicked 2 | . 2 . Crushed . | . . . Highest Temperature 12 | . 12 7 Average Temperature 5 | . 7 3 Received Heat Transfer 177 | . 30 147 Siege Activations . | . . . Martial Activations . | . . . Shielding Activations . | . . . Robots Disrupted . | . . . Combat Hostiles . | . . . Robots Corrupted . | . . . Combat Hostiles . | . . . Parts Fried . | . . . Impact Corruptions . | . . . Robots Melted 1 | . . 1 Combat Hostiles 1 | . . 1 Parts Melted 1 | . . 1 Heat Transferred 259 | . . 259 Parts Sabotaged . | . . . Parts Stolen . | . . . Parts Stripped . | . . . Power Chain Reactions . | . . . Alert | -11 -10 -10 ------- Run | Yrd Mat Sub Maximum Alert Level . | . . . Low Security (%) 100 | . 100 . Level 1 . | . . . Level 2 . | . . . Level 3 . | . . . Level 4 . | . . . Level 5 . | . . . High Security . | . . . Max Security . | . . . Peak Influence 120 | . 120 . Initial . | . . . Average 57 | . 57 . Influence Increases 177 | . 157 20 Destroy 0b10 Robot/C 120 | . 100 20 Destroy 0b10 Robot/NC 5 | . 5 . Destroy Leader 22 | . 22 . Select Force Hacks 30 | . 30 . Influence Decreases 177 | . 120 57 Entered New Map 18 | . . 18 Time Decay 159 | . 120 39 Squads Dispatched 1 | . 1 . Investigation 1 | . 1 . Extermination . | . . . Reinforcement . | . . . Assault . | . . . Garrison . | . . . Intercept . | . . . Searches Triggered . | . . . Construction Impeded . | . . . Haulers Reinforced . | . . . Active Scanning Responses . | . . . Cargo Convoy Interrupts . | . . . Stealth | -11 -10 -10 --------- Run | Yrd Mat Sub Distress Signals . | . . . Communications Jammed . | . . . Distress Signals . | . . . Times Spotted 20 | . 6 14 Peak Tracking Total 3 | . 3 3 Tactical Retreats . | . . . Traps | -11 -10 -10 ------- Run | Yrd Mat Sub Traps Triggered 2 | . 1 1 Indirectly . | . . . Trap Hack Attempts . | . . . Triggered . | . . . Disarmed . | . . . Reprogrammed . | . . . Reused . | . . . Traps Extracted . | . . . Installed . | . . . Triggered . | . . . Machines | -11 -10 -10 ---------- Run | Yrd Mat Sub Machines Disabled . | . . . Max in Single Turn . | . . . Machines Repaired . | . . . Machines Dismantled . | . . . Machines Sabotaged . | . . . Overloaded Fab Kills . | . . . Hacking | -11 -10 -10 --------- Run | Yrd Mat Sub Machines Accessed 2 | . 2 . Terminals 1 | . 1 . Fabricators . | . . . Repair Stations . | . . . Recycling Units 1 | . 1 . Scanalyzers . | . . . Garrison Access . | . . . Total Hacks 4 | . 4 . Successful 3 | . 3 . Failed 1 | . 1 . Catastrophic . | . . . Database Lockouts . | . . . Manual 3 | . 3 . Terminals 3 | . 3 . Fabricators . | . . . Repair Stations . | . . . Recycling Units 1 | . 1 . Scanalyzers . | . . . Garrison Access . | . . . Terminal Hacks 1 | . 1 . Prototype ID Bank 1 | . 1 . Fabricator Hacks . | . . . Repair Station Hacks . | . . . Recycling Unit Hacks . | . . . Scanalyzer . | . . . Garrison Access Hacks . | . . . Unauthorized Hacks 2 | . 2 . Terminals 1 | . 1 . Botnet 1 | . 1 . Fabricators . | . . . Repair Stations . | . . . Recycling Units 1 | . 1 . Tunnel 1 | . 1 . Scanalyzers . | . . . Garrison Access . | . . . Data Cores Recovered . | . . . Used . | . . . Hacking Detections 1 | . 1 . Full Trace Events . | . . . Feedback Events . | . . . Feedback Blocked . | . . . Robot Schematics Acquired . | . . . Robots Built . | . . . Authchips . | . . . Time . | . . . Total Robot Build Rating . | . . . Part Schematics Acquired . | . . . Parts Built . | . . . Authchips . | . . . Time . | . . . Total Part Build Rating . | . . . Parts Repaired . | . . . Time . | . . . Parts Recycled . | . . . Recycled Matter . | . . . Retrieved Matter . | . . . Retrieved Components . | . . . Parts Scanalyzed . | . . . Part Schematics Acquired . | . . . Parts Damaged . | . . . Bothacking | -11 -10 -10 ------------ Run | Yrd Mat Sub Used RIF Installer . | . . . Robots Hacked . | . . . Non-combat . | . . . Combat . | . . . Robot Hacks Applied . | . . . Relay Couplers Released . | . . . Fabnet Peak Effective % . | . . . Robots Rewired . | . . . Allies Hacked . | . . . Hacks Repelled . | . . . Allies | -11 -10 -10 -------- Run | Yrd Mat Sub Total Allies . | . . . Largest Group . | . . . Highest-Rated Group . | . . . Highest-Rated Ally . | . . . Total Orders . | . . . Ally Attacks . | . . . Total Damage . | . . . Kills . | . . . Allies Corrupted . | . . . Allies Melted . | . . . Intel | -11 -10 -10 ------- Run | Yrd Mat Sub Active Infowar (turns) . | . . . Robot Analysis Total . | . . . Derelict Logs Recovered 2 | . . 2 Drone Launches . | . . . Drone Recoveries . | . . . Exploration | -11 -10 -10 ------------- Run | Yrd Mat Sub Turns Passed 1684 | . 337 1347 Spaces Moved 951 | 1 217 733 Core 65 | . . 65 Treads 422 | . 21 401 Legs 197 | 1 196 . Wheels 267 | . . 267 Hover . | . . . Flight . | . . . Fastest Speed 120 | 120 120 120 Average Speed 160 | 120 124 171 Slowest Speed 450 | 120 190 450 Overloaded Moves . | . . . Propulsion Burnouts . | . . . Robots Hopped . | . . . Potential Cave-ins . | . . . Cave-ins Triggered . | . . . Exploration Rate (%) 33 | 2 37 61 Regions Visited 2 Branch Regions 1 Pre-discovered Areas 2 | . 1 1 Known Exits Taken . | . . . Unknown Exits Taken 2 | 1 1 . Scrap Searched 4 | . . 4 Spaces Dug . | . . . Terrain Destroyed 188 | . . 188 Melee . | . . . Projectile . | . . . AOE 188 | . . 188 Terrain Rammed . | . . . Walls Destroyed . | . . . Machines Disabled . | . . . Actions | -11 -10 -10 --------- Run | Yrd Mat Sub Total 1051 | . 265 786 Wait 16 | . 16 . Move 949 | . 216 733 Hop . | . . . Pick Up 10 | . 6 4 Fast Attach 6 | . 4 2 Attach 5 | . 2 3 Detach 2 | . 2 . Swap 3 | . 1 2 Drop 11 | . 5 6 Fire 47 | . 11 36 Melee . | . . . Ram . | . . . Kick 2 | . 2 . Crush . | . . . Escape Stasis . | . . . Rewire . | . . . Trap . | . . . Miscellaneous . | . . . Route ------- -11/Scrapyard -10/Materials (discovered 3 exits: [*Mat] / [*Min] / [*Sub]) -10/Subcaves (discovered 1 exit: [*Mat]) History --------- Turn | Location | Event 1 | -11/Scrapyard | Discovered new exit (range 0) 1 | -11/Scrapyard | Entered Materials 9 | -10/Materials | Discovered new exit (range 13) 196 | -10/Materials | Discovered new exit (range 15) 257 | -10/Materials | Discovered new exit (range 5) 323 | -10/Materials | Build established: Mutant 338 | -10/Materials | Entered Subcaves 664 | -10/Subcaves | Learned 2 Materials zone layouts 776 | -10/Subcaves | Ambushed by Subdweller buried in earth 889 | -10/Subcaves | Discovered new exit (range 13) 889 | -10/Subcaves | Ambushed by Subdweller buried in earth 965 | -10/Subcaves | Shifting Twisted Machinery released Sub. Beam Cannon 966 | -10/Subcaves | Core integrity fell below 50% 976 | -10/Subcaves | Shifting Twisted Machinery released Battle Rifle 1208 | -10/Subcaves | Core integrity fell below 20% 1373 | -10/Subcaves | Learned location of Zion (-6) 1678 | -10/Subcaves | A Subdweller sparked back to life 1678 | -10/Subcaves | A Subdweller sparked back to life 1685 | -10/Subcaves | Destroyed by OW-ZEB(R) with Subdweller Laser Last Messages --------------- 01378_ Searching scrap... 01378_ Found Sub. Machine Gun. 01378_ Found 58 Matter. 01379_ Acquired 58 matter. 01379_ Searching scrap... 01379_ Found Mak. Thermal Plating. 01379_ Found Battle Rifle. 01379_ Found 57 Matter. 01380_ Acquired 57 matter. 01382_ Acquired Mak. Thermal Plating. 01389_ Sub. Monowheel shoots sparks and powers down. 01412_ Searching scrap... 01412_ Found Sub. Machine Gun. 01412_ Found Sub. Power Source. 01412_ Found 37 Matter. 01413_ Acquired 22 matter. 01678_ OW-ZEB(R) creaks and sparks as it begins to move. 01678_ CD-L5Z(R) creaks and sparks as it begins to move. 01682_ Destroyed Sub. Monowheel. 01685_ Mak. Thermal Plating destroyed. Map ----- +----------------------------------------------------+ | ??????????????????????????# ### # | | ??????????????????????????# # ## ## # | | ??????????????????????????# ###### ## | | ??????????????????????????# ######??# ## # | | ??????????????????????????## #### ##?# ## # | | ???????????????????????????## #?## # | | ????????????????????????????# #?? # | | ????????????????????????????# % #??# # ### | | ????????????????????????????# # ###?# ###?? | | ????????????????????????????### #### #?? | | ??????????????????????????????## ## #? | | ?????????????????????????###### ##?????? | | ?????????????????????????# #???????? | | ?????????????????????????# #??????? | | ?????????????????????????## #???????# | | ??????????????????????????## ####???????? | | ???????????????????????????## ######?????? | | ????????????????????????????## ###???? | | ?????????????????????????????# ####? | | ????????????????###<##???????# #### ## | | ????????????????# & #??????# ##??### # | | ???????????????## < ####?## #?????## # | | ?????????????### < ### #??????# # | | ?????????????# < ## ##?????# # | | ?????????????# < & RR #?????# ## ## | | ???????????????????# R @ #?????###### ## | | ??????????????????# ## ##?????????## | | ?????????????????# #### ####??????## | | ?????????????????## # ???# ##?????# | | ????????????????????#????#" ## ##????# | | ?????????????????????????###### ##???# | | ??????????????????????????????# #??## | | ??????????????????????????????# #### | | ??????????????????????????????# ####### | | ??????????????????????????????## #????# # | | ???????????????????????????????## #????# ## | | ???????????????????????????????## ##???# ###? | | ???????????????????????????????# #???# ####??? | | ???????????????????????????????## #???## #?????? | | ????????????????????????????????# #????###?????? | | ????????????????????????????????# ##????????????? | | ????????????????????????????????# ##????????????? | | ????????????????????????#???????# #????????????? | | ???????????????????????## ?????# #????????????? | | ??????????????????????" "#???## ##????????????? | | ?????????????????????? """???# #?????????????? | | ??????????????????????# """"#### ##?????????????? | | ?????????????????????# """"" " #??????????????? | | ????????????????????# """" "######??????????? | | ????????????????????# """ # #??????????? | +----------------------------------------------------+ Best States ------------- Heat Dissipation 25 Energy Generation 15 Energy Capacity 250 Matter Stores 300 Matter Capacity 300 Sight Range 16 Terrain Scan Density 10 Armor Coverage 100 Resistance: TH 10 Evasion (%) 55 Recoil Reduction 2 Item Schematics ----------------- None Robot Schematics ------------------ None Fabricated ------------ Nothing Repaired ---------- Nothing Alien Tech Used ----------------- None Achievements -------------- None Challenges ------------ None Game ------ Seed RingBoreMiniperforator Manual? 0 Play Time 00:12:00 Cumulative 350.9 hours Start 2025.06.22 @ 13:32:15 End 2025.06.22 @ 13:39:07 Sessions 1 Manual Loads 0 Difficulty Rogue Special Mode None Game No. 242 Rogue 242 Adventurer 0 Explorer 0 Win Type - Total 27 Types 21/0/4/2/0/0/0/0/0/0 Lore% 89 Gallery% 77 Achievement% 67 Wizard Run 0 Options --------- Layout 0 ASCII 1 Keyboard 1 Movement Arrows Keybinds 0 Fullscreen 2 Font 18/Terminus Map View 76x50 Zoom Use 0% Tactical HUD 1 Map Filters NONE Filters NONE Steam 1 RUN: 1f75214d-b8d4-4dad-b5b7-ac783b0ec323